[Event "December 12 Early 2023"]
[Site "https://www.chess.com"]
[Date "2023.12.12"]
[Round "6"]
[White "Negron Lizarazo, Juan Sebastian"]
[Black "Tasev, Dejan"]
[Result "0-1"]
[Board "152"]
[TimeControl "180+1"]
[WhiteFideId "3936910"]
[BlackFideId "936618"]
[WhiteElo "2140"]
[BlackElo "2566"]
[WhiteTeam "COL"]
[BlackTeam "SRB"]
[WhiteClock "0:00:08"]
[BlackClock "0:00:36"]

1. e4 {[%clk 0:02:38]}  e5 {[%clk 0:02:59]} 2. Nf3 {[%clk 0:02:35]}  Nc6 {[%clk 0:02:59]} 3. d4 {[%clk 0:02:30]}  exd4 {[%clk 0:02:59]} 4. c3 {[%clk 0:02:27]}  d3 {[%clk 0:02:59]} 5. Bxd3 {[%clk 0:02:27]}  g6 {[%clk 0:02:59]} 6. Bc4 {[%clk 0:02:26]}  Bg7 {[%clk 0:02:55]} 7. Qb3 {[%clk 0:02:23]}  Qe7 {[%clk 0:02:47]} 8. O-O {[%clk 0:02:20]}  Na5 {[%clk 0:02:44]} 9. Qa4 {[%clk 0:02:15]}  Nxc4 {[%clk 0:02:44]} 10. Qxc4 {[%clk 0:02:16]}  d6 {[%clk 0:02:42]} 11. Bg5 {[%clk 0:02:16]}  f6 {[%clk 0:02:40]} 12. Bh4 {[%clk 0:02:13]}  Nh6 {[%clk 0:02:36]} 13. e5 {[%clk 0:02:05]}  Be6 {[%clk 0:02:24]} 14. Qa4+ {[%clk 0:02:00]}  Bd7 {[%clk 0:01:56]} 15. Qb4 {[%clk 0:01:53]}  dxe5 {[%clk 0:01:55]} 16. Qxb7 {[%clk 0:01:51]}  O-O {[%clk 0:01:55]} 17. Qxc7 {[%clk 0:01:35]}  Rfc8 {[%clk 0:01:45]} 18. Qa5 {[%clk 0:01:30]}  Nf5 {[%clk 0:01:37]} 19. Bg3 {[%clk 0:01:12]}  Bc6 {[%clk 0:01:34]} 20. Nbd2 {[%clk 0:01:08]}  Rab8 {[%clk 0:01:31]} 21. b4 {[%clk 0:01:04]}  Bh6 {[%clk 0:01:24]} 22. a4 {[%clk 0:00:57]}  Nxg3 {[%clk 0:01:17]} 23. hxg3 {[%clk 0:00:53]}  e4 {[%clk 0:01:17]} 24. Nd4 {[%clk 0:00:44]}  Ba8 {[%clk 0:01:05]} 25. N2b3 {[%clk 0:00:35]}  e3 {[%clk 0:00:59]} 26. Rfe1 {[%clk 0:00:18]}  Rxc3 {[%clk 0:00:50]} 27. fxe3 {[%clk 0:00:17]}  Rxe3 {[%clk 0:00:48]} 28. Rxe3 {[%clk 0:00:16]}  Bxe3+ {[%clk 0:00:48]} 29. Kh2 {[%clk 0:00:16]}  Qg7 {[%clk 0:00:43]} 30. g4 {[%clk 0:00:14]}  Qh6+ {[%clk 0:00:41]} 31. Kg3 {[%clk 0:00:14]}  Qf4+ {[%clk 0:00:41]} 32. Kh3 {[%clk 0:00:14]}  Bf2 {[%clk 0:00:38]} 33. Ne2 {[%clk 0:00:09]}  Qh6+ {[%clk 0:00:37]} 34. Qh5 {[%clk 0:00:07]}  gxh5 {[%clk 0:00:37]} 35. gxh5 {[%clk 0:00:08]}  Qxh5# {[%clk 0:00:36]} 0-1

[Event "December 12 Early 2023"]
[Site "https://www.chess.com"]
[Date "2023.12.12"]
[Round "6"]
[White "Turzo, Attila"]
[Black "IranianCheetah"]
[Result "0-1"]
[Board "155"]
[TimeControl "180+1"]
[WhiteFideId "704954"]
[WhiteElo "2480"]
[BlackElo "2326"]
[WhiteTeam "HUN"]
[WhiteClock "0:00:00"]
[BlackClock "0:00:03"]

1. d4 {[%clk 0:03:00]}  d5 {[%clk 0:03:00]} 2. Nf3 {[%clk 0:03:00]}  Nf6 {[%clk 0:03:00]} 3. Bf4 {[%clk 0:02:59]}  c5 {[%clk 0:02:58]} 4. e3 {[%clk 0:03:00]}  Nc6 {[%clk 0:02:59]} 5. Nbd2 {[%clk 0:03:00]}  e6 {[%clk 0:02:54]} 6. c3 {[%clk 0:02:59]}  Bd6 {[%clk 0:02:48]} 7. Bg3 {[%clk 0:02:56]}  O-O {[%clk 0:02:47]} 8. Bd3 {[%clk 0:02:56]}  c4 {[%clk 0:02:43]} 9. Bc2 {[%clk 0:02:55]}  b5 {[%clk 0:02:42]} 10. e4 {[%clk 0:02:54]}  Nxe4 {[%clk 0:02:33]} 11. Nxe4 {[%clk 0:02:55]}  dxe4 {[%clk 0:02:33]} 12. Bxe4 {[%clk 0:02:56]}  Bb7 {[%clk 0:02:31]} 13. Qc2 {[%clk 0:02:35]}  f5 {[%clk 0:02:27]} 14. Bxc6 {[%clk 0:02:22]}  Bxc6 {[%clk 0:02:28]} 15. Qe2 {[%clk 0:02:22]}  f4 {[%clk 0:01:16]} 16. Bh4 {[%clk 0:02:11]}  Qd7 {[%clk 0:01:09]} 17. Ne5 {[%clk 0:01:33]}  Bxe5 {[%clk 0:01:08]} 18. Qxe5 {[%clk 0:01:34]}  Rf5 {[%clk 0:01:08]} 19. Qe2 {[%clk 0:01:24]}  Bxg2 {[%clk 0:00:55]} 20. Rg1 {[%clk 0:01:20]}  Qd5 {[%clk 0:00:44]} 21. f3 {[%clk 0:00:56]}  Bxf3 {[%clk 0:00:43]} 22. Qd2 {[%clk 0:00:42]}  Qe4+ {[%clk 0:00:40]} 23. Kf2 {[%clk 0:00:42]}  Bh5 {[%clk 0:00:30]} 24. Rge1 {[%clk 0:00:34]}  Qf3+ {[%clk 0:00:28]} 25. Kg1 {[%clk 0:00:33]}  Qh3 {[%clk 0:00:23]} 26. Qg2 {[%clk 0:00:29]}  Qxh4 {[%clk 0:00:22]} 27. Qxa8+ {[%clk 0:00:29]}  Kf7 {[%clk 0:00:15]} 28. Qb7+ {[%clk 0:00:27]}  Kf6 {[%clk 0:00:14]} 29. Qe4 {[%clk 0:00:16]}  Rg5+ {[%clk 0:00:11]} 30. Kh1 {[%clk 0:00:17]}  Bg4 {[%clk 0:00:05]} 31. Qxf4+ {[%clk 0:00:16]}  Rf5 {[%clk 0:00:04]} 32. Qg3 {[%clk 0:00:16]}  Bf3+ {[%clk 0:00:04]} 33. Kg1 {[%clk 0:00:13]}  Rg5 {[%clk 0:00:04]} 34. Kf2 {[%clk 0:00:11]}  Rxg3 {[%clk 0:00:05]} 35. hxg3 {[%clk 0:00:12]}  Qg4 {[%clk 0:00:05]} 36. Re3 {[%clk 0:00:10]}  Bd5 {[%clk 0:00:05]} 37. Rf1 {[%clk 0:00:11]}  Kg6 {[%clk 0:00:05]} 38. Ke1 {[%clk 0:00:10]}  Qg5 {[%clk 0:00:04]} 39. Rf4 {[%clk 0:00:09]}  h5 {[%clk 0:00:04]} 40. Kf2 {[%clk 0:00:10]}  Kh6 {[%clk 0:00:04]} 41. Re5 {[%clk 0:00:09]}  Qg6 {[%clk 0:00:03]} 42. Rh4 {[%clk 0:00:09]}  Qc2+ {[%clk 0:00:03]} 43. Re2 {[%clk 0:00:09]}  Qc1 {[%clk 0:00:03]} 44. Re1 {[%clk 0:00:09]}  Qd2+ {[%clk 0:00:03]} 45. Re2 {[%clk 0:00:09]}  Qc1 {[%clk 0:00:03]} 46. Rh2 {[%clk 0:00:03]}  Qg5 {[%clk 0:00:03]} 47. Re5 {[%clk 0:00:01]}  Qf6+ {[%clk 0:00:03]} 48. Ke3 {[%clk 0:00:00]}  Qf3+ {[%clk 0:00:03]} 0-1

[Event "December 12 Early 2023"]
[Site "https://www.chess.com"]
[Date "2023.12.12"]
[Round "6"]
[White "Skaric, Djuro"]
[Black "Rodriguez Santiago, Jaime"]
[Result "1-0"]
[Board "158"]
[TimeControl "180+1"]
[WhiteFideId "934569"]
[BlackFideId "3100898"]
[WhiteElo "2402"]
[BlackElo "2287"]
[WhiteTeam "SRB"]
[BlackTeam "PUR"]
[WhiteClock "0:01:12"]
[BlackClock "0:00:16"]

1. g3 {[%clk 0:03:00]}  Nf6 {[%clk 0:02:55]} 2. Bg2 {[%clk 0:03:01]}  d5 {[%clk 0:02:53]} 3. d3 {[%clk 0:03:02]}  c5 {[%clk 0:02:53]} 4. Nf3 {[%clk 0:03:03]}  Nc6 {[%clk 0:02:52]} 5. O-O {[%clk 0:03:04]}  e6 {[%clk 0:02:53]} 6. Nc3 {[%clk 0:03:04]}  Be7 {[%clk 0:02:53]} 7. e4 {[%clk 0:03:05]}  dxe4 {[%clk 0:02:53]} 8. dxe4 {[%clk 0:03:04]}  Qxd1 {[%clk 0:02:52]} 9. Rxd1 {[%clk 0:03:05]}  O-O {[%clk 0:02:52]} 10. h3 {[%clk 0:03:05]}  h6 {[%clk 0:02:50]} 11. Be3 {[%clk 0:03:05]}  a6 {[%clk 0:02:47]} 12. Nd2 {[%clk 0:03:03]}  Nd4 {[%clk 0:02:39]} 13. Rac1 {[%clk 0:02:53]}  e5 {[%clk 0:02:35]} 14. f4 {[%clk 0:02:49]}  Nd7 {[%clk 0:02:25]} 15. f5 {[%clk 0:02:47]}  b5 {[%clk 0:02:20]} 16. Nd5 {[%clk 0:02:46]}  Bd8 {[%clk 0:02:18]} 17. Kf2 {[%clk 0:02:43]}  Bb7 {[%clk 0:02:14]} 18. c3 {[%clk 0:02:42]}  Nc6 {[%clk 0:02:07]} 19. Nb3 {[%clk 0:02:37]}  c4 {[%clk 0:01:58]} 20. Nc5 {[%clk 0:02:36]}  Nxc5 {[%clk 0:01:56]} 21. Bxc5 {[%clk 0:02:36]}  Re8 {[%clk 0:01:54]} 22. h4 {[%clk 0:02:36]}  Ne7 {[%clk 0:01:46]} 23. Nb6 {[%clk 0:02:23]}  Bxb6 {[%clk 0:01:20]} 24. Bxb6 {[%clk 0:02:22]}  Kf8 {[%clk 0:01:09]} 25. g4 {[%clk 0:02:18]}  f6 {[%clk 0:01:05]} 26. Rd7 {[%clk 0:02:15]}  Bc6 {[%clk 0:01:03]} 27. Rd6 {[%clk 0:02:12]}  Kf7 {[%clk 0:01:00]} 28. Rcd1 {[%clk 0:02:08]}  Rab8 {[%clk 0:00:56]} 29. Bc5 {[%clk 0:02:06]}  Rb7 {[%clk 0:00:51]} 30. Re6 {[%clk 0:01:57]}  Rc8 {[%clk 0:00:49]} 31. Be3 {[%clk 0:01:47]}  Be8 {[%clk 0:00:49]} 32. g5 {[%clk 0:01:45]}  hxg5 {[%clk 0:00:47]} 33. hxg5 {[%clk 0:01:45]}  a5 {[%clk 0:00:48]} 34. g6+ {[%clk 0:01:44]}  Kf8 {[%clk 0:00:48]} 35. Ra6 {[%clk 0:01:37]}  b4 {[%clk 0:00:47]} 36. Rxa5 {[%clk 0:01:36]}  bxc3 {[%clk 0:00:47]} 37. bxc3 {[%clk 0:01:36]}  Rb2+ {[%clk 0:00:48]} 38. Rd2 {[%clk 0:01:36]}  Rb1 {[%clk 0:00:46]} 39. Bf1 {[%clk 0:01:36]}  Bc6 {[%clk 0:00:44]} 40. Bxc4 {[%clk 0:01:26]}  Bxe4 {[%clk 0:00:43]} 41. Bb3 {[%clk 0:01:26]}  Bxf5 {[%clk 0:00:42]} 42. Ra7 {[%clk 0:01:25]}  Bxg6 {[%clk 0:00:29]} 43. Rdd7 {[%clk 0:01:23]}  Re8 {[%clk 0:00:29]} 44. Bc5 {[%clk 0:01:22]}  Bf5 {[%clk 0:00:27]} 45. Rxe7 {[%clk 0:01:21]}  Rxe7 {[%clk 0:00:27]} 46. Rxe7 {[%clk 0:01:20]}  g5 {[%clk 0:00:24]} 47. Rxe5+ {[%clk 0:01:19]}  Kg7 {[%clk 0:00:17]} 48. Rxf5 {[%clk 0:01:19]}  Kg6 {[%clk 0:00:18]} 49. Rd5 {[%clk 0:01:18]}  f5 {[%clk 0:00:18]} 50. Be3 {[%clk 0:01:12]}  f4 {[%clk 0:00:16]} 51. Bc2+ {[%clk 0:01:12]} 1-0

[Event "December 12 Early 2023"]
[Site "https://www.chess.com"]
[Date "2023.12.12"]
[Round "6"]
[White "Quirke, Jeffrey"]
[Black "Salinas Tomas, Daniel"]
[Result "0-1"]
[Board "159"]
[TimeControl "180+1"]
[WhiteFideId "2013029"]
[BlackFideId "24597716"]
[WhiteElo "2158"]
[BlackElo "2399"]
[WhiteTeam "USA"]
[BlackTeam "ESP"]
[WhiteClock "0:00:00"]
[BlackClock "0:01:00"]

1. e4 {[%clk 0:02:54]}  c5 {[%clk 0:02:59]} 2. c3 {[%clk 0:02:54]}  d5 {[%clk 0:02:57]} 3. exd5 {[%clk 0:02:54]}  Qxd5 {[%clk 0:02:58]} 4. d4 {[%clk 0:02:54]}  e5 {[%clk 0:02:52]} 5. dxe5 {[%clk 0:02:35]}  Qxd1+ {[%clk 0:02:40]} 6. Kxd1 {[%clk 0:02:35]}  Nc6 {[%clk 0:02:41]} 7. f4 {[%clk 0:02:31]}  f6 {[%clk 0:02:39]} 8. Nf3 {[%clk 0:02:17]}  Bg4 {[%clk 0:02:35]} 9. Bb5 {[%clk 0:02:17]}  O-O-O+ {[%clk 0:02:33]} 10. Ke2 {[%clk 0:02:06]}  fxe5 {[%clk 0:02:29]} 11. Bxc6 {[%clk 0:02:06]}  bxc6 {[%clk 0:02:29]} 12. fxe5 {[%clk 0:02:05]}  Ne7 {[%clk 0:02:28]} 13. h3 {[%clk 0:01:58]}  Be6 {[%clk 0:02:29]} 14. Bg5 {[%clk 0:01:32]}  h6 {[%clk 0:02:23]} 15. Bh4 {[%clk 0:01:32]}  g5 {[%clk 0:02:22]} 16. Bf2 {[%clk 0:01:27]}  Ng6 {[%clk 0:02:17]} 17. g3 {[%clk 0:01:21]}  Bd5 {[%clk 0:02:13]} 18. Nbd2 {[%clk 0:01:18]}  Be7 {[%clk 0:02:06]} 19. Be3 {[%clk 0:01:09]}  Rhe8 {[%clk 0:01:58]} 20. Rhf1 {[%clk 0:01:08]}  Bf8 {[%clk 0:01:58]} 21. c4 {[%clk 0:01:00]}  Bg8 {[%clk 0:01:56]} 22. b3 {[%clk 0:00:49]}  Nxe5 {[%clk 0:01:55]} 23. Nxe5 {[%clk 0:00:47]}  Rxe5 {[%clk 0:01:56]} 24. Rae1 {[%clk 0:00:28]}  Rde8 {[%clk 0:01:51]} 25. Kf2 {[%clk 0:00:26]}  Bg7 {[%clk 0:01:48]} 26. Nf3 {[%clk 0:00:21]}  Rf5 {[%clk 0:01:47]} 27. Kg2 {[%clk 0:00:21]}  Bh7 {[%clk 0:01:43]} 28. g4 {[%clk 0:00:19]}  Rf7 {[%clk 0:01:42]} 29. Kg3 {[%clk 0:00:18]}  Ref8 {[%clk 0:01:40]} 30. Bxc5 {[%clk 0:00:17]}  Rd8 {[%clk 0:01:20]} 31. Rf2 {[%clk 0:00:12]}  Rd3 {[%clk 0:01:17]} 32. Ref1 {[%clk 0:00:12]}  Be4 {[%clk 0:01:16]} 33. Kg2 {[%clk 0:00:05]}  Kd7 {[%clk 0:01:12]} 34. Kg3 {[%clk 0:00:04]}  Rf4 {[%clk 0:00:55]} 35. Kg2 {[%clk 0:00:04]}  Ke8 {[%clk 0:00:55]} 36. Kg3 {[%clk 0:00:04]}  Kf7 {[%clk 0:00:56]} 37. Kg2 {[%clk 0:00:05]}  Kg6 {[%clk 0:00:56]} 38. Kg3 {[%clk 0:00:05]}  h5 {[%clk 0:00:57]} 39. gxh5+ {[%clk 0:00:05]}  Kxh5 {[%clk 0:00:58]} 40. Kg2 {[%clk 0:00:04]}  g4 {[%clk 0:00:59]} 41. hxg4+ {[%clk 0:00:00]}  Kxg4 {[%clk 0:01:00]} 0-1

[Event "December 12 Early 2023"]
[Site "https://www.chess.com"]
[Date "2023.12.12"]
[Round "6"]
[White "Sharapov, Evgeny"]
[Black "Tarasova, Viktoriya"]
[Result "0-1"]
[Board "163"]
[TimeControl "180+1"]
[WhiteFideId "14103133"]
[BlackFideId "4175840"]
[WhiteElo "2505"]
[BlackElo "2306"]
[WhiteTeam "UKR"]
[BlackTeam "RUS"]
[WhiteClock "0:02:18"]
[BlackClock "0:00:37"]

1. Nc3 {[%clk 0:03:00]}  d5 {[%clk 0:02:59]} 2. d4 {[%clk 0:03:00]}  Nf6 {[%clk 0:02:59]} 3. Bf4 {[%clk 0:03:00]}  a6 {[%clk 0:02:58]} 4. Qd2 {[%clk 0:03:00]}  e6 {[%clk 0:02:58]} 5. O-O-O {[%clk 0:03:00]}  Bd6 {[%clk 0:02:56]} 6. Bxd6 {[%clk 0:03:00]}  Qxd6 {[%clk 0:02:56]} 7. f3 {[%clk 0:03:01]}  O-O {[%clk 0:02:50]} 8. e4 {[%clk 0:03:01]}  Qd8 {[%clk 0:02:46]} 9. Bd3 {[%clk 0:02:59]}  b5 {[%clk 0:02:45]} 10. e5 {[%clk 0:02:57]}  Nfd7 {[%clk 0:02:45]} 11. f4 {[%clk 0:02:57]}  c5 {[%clk 0:02:45]} 12. dxc5 {[%clk 0:02:56]}  Nxc5 {[%clk 0:02:44]} 13. Nf3 {[%clk 0:02:56]}  b4 {[%clk 0:02:39]} 14. Ne2 {[%clk 0:02:56]}  a5 {[%clk 0:02:40]} 15. Kb1 {[%clk 0:02:55]}  Ba6 {[%clk 0:02:38]} 16. Bxa6 {[%clk 0:02:54]}  Nbxa6 {[%clk 0:02:38]} 17. Ned4 {[%clk 0:02:55]}  Ne4 {[%clk 0:02:33]} 18. Qe3 {[%clk 0:02:54]}  Rc8 {[%clk 0:02:30]} 19. Ng5 {[%clk 0:02:53]}  Nac5 {[%clk 0:02:27]} 20. h4 {[%clk 0:02:49]}  a4 {[%clk 0:02:21]} 21. h5 {[%clk 0:02:47]}  h6 {[%clk 0:02:20]} 22. Nxe4 {[%clk 0:02:46]}  Nxe4 {[%clk 0:02:19]} 23. g4 {[%clk 0:02:46]}  Qb6 {[%clk 0:02:03]} 24. Ka1 {[%clk 0:02:43]}  a3 {[%clk 0:01:52]} 25. b3 {[%clk 0:02:40]}  Rc3 {[%clk 0:01:50]} 26. Rd3 {[%clk 0:02:40]}  Rfc8 {[%clk 0:01:37]} 27. Rhd1 {[%clk 0:02:35]}  Qc5 {[%clk 0:01:16]} 28. g5 {[%clk 0:02:31]}  Rxc2 {[%clk 0:00:53]} 29. Nxc2 {[%clk 0:02:27]}  Qxc2 {[%clk 0:00:53]} 30. Rb1 {[%clk 0:02:23]}  Rc3 {[%clk 0:00:38]} 31. Rxc3 {[%clk 0:02:18]}  Nxc3 {[%clk 0:00:37]} 0-1

[Event "December 12 Early 2023"]
[Site "https://www.chess.com"]
[Date "2023.12.12"]
[Round "6"]
[White "Chernomordik, Pavel"]
[Black "Marcziter, Dmitrii"]
[Result "0-1"]
[Board "164"]
[TimeControl "180+1"]
[WhiteFideId "2804530"]
[BlackFideId "13900765"]
[WhiteElo "2482"]
[BlackElo "2302"]
[WhiteTeam "ISR"]
[BlackTeam "GER"]
[WhiteClock "0:00:15"]
[BlackClock "0:00:03"]

1. e4 {[%clk 0:03:00]}  c5 {[%clk 0:02:59]} 2. Nc3 {[%clk 0:03:00]}  a6 {[%clk 0:02:58]} 3. g3 {[%clk 0:03:00]}  Nc6 {[%clk 0:02:56]} 4. Bg2 {[%clk 0:03:00]}  g6 {[%clk 0:02:56]} 5. f4 {[%clk 0:03:00]}  Bg7 {[%clk 0:02:56]} 6. d3 {[%clk 0:03:00]}  d6 {[%clk 0:02:57]} 7. Nf3 {[%clk 0:02:59]}  e6 {[%clk 0:02:56]} 8. O-O {[%clk 0:02:57]}  Nge7 {[%clk 0:02:55]} 9. Be3 {[%clk 0:02:57]}  Nd4 {[%clk 0:02:55]} 10. Qd2 {[%clk 0:02:52]}  O-O {[%clk 0:02:54]} 11. Nd1 {[%clk 0:02:52]}  f5 {[%clk 0:02:52]} 12. Ne1 {[%clk 0:02:47]}  Rb8 {[%clk 0:02:38]} 13. c3 {[%clk 0:02:46]}  Ndc6 {[%clk 0:02:33]} 14. Nf3 {[%clk 0:02:37]}  b5 {[%clk 0:02:31]} 15. e5 {[%clk 0:02:32]}  b4 {[%clk 0:02:24]} 16. Re1 {[%clk 0:02:28]}  dxe5 {[%clk 0:02:17]} 17. fxe5 {[%clk 0:02:17]}  bxc3 {[%clk 0:02:11]} 18. bxc3 {[%clk 0:02:16]}  Qa5 {[%clk 0:02:08]} 19. Qf2 {[%clk 0:02:08]}  Rd8 {[%clk 0:02:03]} 20. Bxc5 {[%clk 0:01:56]}  Rxd3 {[%clk 0:02:02]} 21. Bd6 {[%clk 0:01:55]}  Rb7 {[%clk 0:01:33]} 22. Bf1 {[%clk 0:01:52]}  Rxf3 {[%clk 0:01:18]} 23. Qxf3 {[%clk 0:01:51]}  Nxe5 {[%clk 0:01:18]} 24. Qe3 {[%clk 0:01:32]}  Nd5 {[%clk 0:01:11]} 25. Qc5 {[%clk 0:01:15]}  Qxc5+ {[%clk 0:01:03]} 26. Bxc5 {[%clk 0:01:15]}  Nf3+ {[%clk 0:01:03]} 27. Kf2 {[%clk 0:01:15]}  Nxe1 {[%clk 0:01:03]} 28. Kxe1 {[%clk 0:01:15]}  Nxc3 {[%clk 0:01:01]} 29. Rc1 {[%clk 0:01:14]}  Ne4 {[%clk 0:00:48]} 30. Bxa6 {[%clk 0:01:06]}  Rc7 {[%clk 0:00:44]} 31. Bxc8 {[%clk 0:01:06]}  Rxc8 {[%clk 0:00:43]} 32. Be3 {[%clk 0:01:04]}  Ra8 {[%clk 0:00:38]} 33. Rc2 {[%clk 0:01:03]}  Ra3 {[%clk 0:00:25]} 34. Ke2 {[%clk 0:01:01]}  Ra8 {[%clk 0:00:19]} 35. Bb6 {[%clk 0:00:52]}  g5 {[%clk 0:00:18]} 36. Bf2 {[%clk 0:00:35]}  h5 {[%clk 0:00:17]} 37. Be1 {[%clk 0:00:35]}  g4 {[%clk 0:00:17]} 38. Ne3 {[%clk 0:00:34]}  Ng5 {[%clk 0:00:16]} 39. Bf2 {[%clk 0:00:27]}  Nf3 {[%clk 0:00:16]} 40. Nf1 {[%clk 0:00:26]}  Rd8 {[%clk 0:00:14]} 41. a4 {[%clk 0:00:24]}  Bd4 {[%clk 0:00:14]} 42. Ra2 {[%clk 0:00:23]}  Bxf2 {[%clk 0:00:12]} 43. Kxf2 {[%clk 0:00:23]}  e5 {[%clk 0:00:13]} 44. h3 {[%clk 0:00:22]}  f4 {[%clk 0:00:10]} 45. hxg4 {[%clk 0:00:22]}  hxg4 {[%clk 0:00:10]} 46. a5 {[%clk 0:00:21]}  Ra8 {[%clk 0:00:04]} 47. a6 {[%clk 0:00:21]}  Kf7 {[%clk 0:00:03]} 48. a7 {[%clk 0:00:21]}  Ke6 {[%clk 0:00:04]} 49. gxf4 {[%clk 0:00:20]}  exf4 {[%clk 0:00:04]} 50. Ra4 {[%clk 0:00:20]}  Ke5 {[%clk 0:00:04]} 51. Ke2 {[%clk 0:00:19]}  Nd4+ {[%clk 0:00:04]} 52. Kd3 {[%clk 0:00:19]}  Nc6 {[%clk 0:00:04]} 53. Nd2 {[%clk 0:00:18]}  Rxa7 {[%clk 0:00:02]} 54. Re4+ {[%clk 0:00:19]}  Kf5 {[%clk 0:00:03]} 55. Rc4 {[%clk 0:00:17]}  Ne5+ {[%clk 0:00:03]} 56. Ke2 {[%clk 0:00:16]}  Nxc4 {[%clk 0:00:03]} 57. Nxc4 {[%clk 0:00:17]}  Ra2+ {[%clk 0:00:03]} 58. Kf1 {[%clk 0:00:16]}  g3 {[%clk 0:00:02]} 59. Kg1 {[%clk 0:00:15]}  f3 {[%clk 0:00:02]} 60. Ne3+ {[%clk 0:00:15]}  Ke4 {[%clk 0:00:03]} 61. Nf1 {[%clk 0:00:16]}  Ra1 {[%clk 0:00:03]} 62. Kh1 {[%clk 0:00:15]}  Rxf1# {[%clk 0:00:03]} 0-1

[Event "December 12 Early 2023"]
[Site "https://www.chess.com"]
[Date "2023.12.12"]
[Round "6"]
[White "Clawitter, Craig"]
[Black "Mazurkiewicz, Michal"]
[Result "0-1"]
[Board "168"]
[TimeControl "180+1"]
[WhiteFideId "2023105"]
[BlackFideId "1124943"]
[WhiteElo "2233"]
[BlackElo "2420"]
[WhiteTeam "USA"]
[BlackTeam "POL"]
[WhiteClock "0:00:07"]
[BlackClock "0:00:36"]

1. e4 {[%clk 0:02:57]}  d6 {[%clk 0:02:59]} 2. d4 {[%clk 0:02:57]}  Nf6 {[%clk 0:03:00]} 3. Nc3 {[%clk 0:02:58]}  c6 {[%clk 0:03:00]} 4. Be3 {[%clk 0:02:57]}  b5 {[%clk 0:03:00]} 5. Bd3 {[%clk 0:02:55]}  e5 {[%clk 0:03:00]} 6. Nf3 {[%clk 0:02:51]}  Qc7 {[%clk 0:02:58]} 7. Qd2 {[%clk 0:02:43]}  Be7 {[%clk 0:02:58]} 8. h3 {[%clk 0:02:42]}  O-O {[%clk 0:02:52]} 9. O-O-O {[%clk 0:02:35]}  Re8 {[%clk 0:02:52]} 10. g4 {[%clk 0:02:33]}  Bf8 {[%clk 0:02:52]} 11. g5 {[%clk 0:02:32]}  Nh5 {[%clk 0:02:48]} 12. Ne2 {[%clk 0:02:27]}  a6 {[%clk 0:02:28]} 13. Ng3 {[%clk 0:02:16]}  Nxg3 {[%clk 0:02:28]} 14. fxg3 {[%clk 0:02:17]}  c5 {[%clk 0:02:26]} 15. dxc5 {[%clk 0:02:00]}  dxc5 {[%clk 0:02:26]} 16. c4 {[%clk 0:02:00]}  Be6 {[%clk 0:02:21]} 17. Kb1 {[%clk 0:01:53]}  bxc4 {[%clk 0:02:17]} 18. Bc2 {[%clk 0:01:52]}  Nc6 {[%clk 0:02:18]} 19. Nh4 {[%clk 0:01:29]}  g6 {[%clk 0:02:09]} 20. Nf5 {[%clk 0:01:25]}  gxf5 {[%clk 0:02:04]} 21. exf5 {[%clk 0:01:26]}  Bc8 {[%clk 0:01:58]} 22. Be4 {[%clk 0:01:07]}  Rb8 {[%clk 0:01:53]} 23. h4 {[%clk 0:00:58]}  Nd4 {[%clk 0:01:53]} 24. h5 {[%clk 0:00:38]}  Bb7 {[%clk 0:01:43]} 25. Bxb7 {[%clk 0:00:30]}  Qxb7 {[%clk 0:01:44]} 26. g6 {[%clk 0:00:30]}  Qe4+ {[%clk 0:01:43]} 27. Kc1 {[%clk 0:00:22]}  Rb3 {[%clk 0:01:31]} 28. Bxd4 {[%clk 0:00:18]}  Rd3 {[%clk 0:01:29]} 29. Qg5 {[%clk 0:00:13]}  exd4 {[%clk 0:00:40]} 30. gxh7+ {[%clk 0:00:13]}  Kxh7 {[%clk 0:00:40]} 31. Qg6+ {[%clk 0:00:13]}  fxg6 {[%clk 0:00:36]} 32. hxg6+ {[%clk 0:00:12]}  Kg8 {[%clk 0:00:36]} 33. f6 {[%clk 0:00:09]}  Rxd1+ {[%clk 0:00:36]} 34. Rxd1 {[%clk 0:00:07]}  Qxg6 {[%clk 0:00:36]} 0-1

[Event "December 12 Early 2023"]
[Site "https://www.chess.com"]
[Date "2023.12.12"]
[Round "6"]
[White "Acosta Cruz, Oscar Yosimar"]
[Black "Becerra, Juan David"]
[Result "0-1"]
[Board "170"]
[TimeControl "180+1"]
[WhiteFideId "5111269"]
[BlackFideId "4404998"]
[WhiteElo "2176"]
[BlackElo "2392"]
[WhiteTeam "MEX"]
[BlackTeam "COL"]
[WhiteClock "0:01:23"]
[BlackClock "0:01:33"]

1. e4 {[%clk 0:03:00]}  c5 {[%clk 0:02:57]} 2. Nf3 {[%clk 0:02:59]}  d6 {[%clk 0:02:57]} 3. Bb5+ {[%clk 0:02:59]}  Bd7 {[%clk 0:02:57]} 4. a4 {[%clk 0:02:59]}  Nf6 {[%clk 0:02:55]} 5. Nc3 {[%clk 0:02:55]}  Nc6 {[%clk 0:02:44]} 6. O-O {[%clk 0:02:53]}  e5 {[%clk 0:02:43]} 7. Re1 {[%clk 0:02:51]}  Be7 {[%clk 0:02:43]} 8. d3 {[%clk 0:02:45]}  O-O {[%clk 0:02:43]} 9. Ne2 {[%clk 0:02:44]}  a6 {[%clk 0:02:42]} 10. Bc4 {[%clk 0:02:44]}  Be6 {[%clk 0:02:41]} 11. Bxe6 {[%clk 0:02:39]}  fxe6 {[%clk 0:02:41]} 12. Ng3 {[%clk 0:02:39]}  h6 {[%clk 0:02:38]} 13. c3 {[%clk 0:02:39]}  Rb8 {[%clk 0:02:34]} 14. Qb3 {[%clk 0:02:38]}  Qd7 {[%clk 0:02:34]} 15. a5 {[%clk 0:02:35]}  Bd8 {[%clk 0:02:23]} 16. d4 {[%clk 0:02:35]}  cxd4 {[%clk 0:02:22]} 17. cxd4 {[%clk 0:02:35]}  exd4 {[%clk 0:02:16]} 18. Rd1 {[%clk 0:02:18]}  Nxa5 {[%clk 0:02:07]} 19. Rxa5 {[%clk 0:02:17]}  Bxa5 {[%clk 0:02:05]} 20. Nxd4 {[%clk 0:02:18]}  d5 {[%clk 0:01:55]} 21. Bf4 {[%clk 0:01:46]}  Rbe8 {[%clk 0:01:41]} 22. exd5 {[%clk 0:01:41]}  Nxd5 {[%clk 0:01:36]} 23. Be5 {[%clk 0:01:40]}  Bc7 {[%clk 0:01:35]} 24. Qxb7 {[%clk 0:01:38]}  Rb8 {[%clk 0:01:34]} 25. Qa7 {[%clk 0:01:37]}  Ra8 {[%clk 0:01:33]} 26. Qb7 {[%clk 0:01:23]}  Rfb8 {[%clk 0:01:33]} 0-1

[Event "December 12 Early 2023"]
[Site "https://www.chess.com"]
[Date "2023.12.12"]
[Round "6"]
[White "Mesquita, Eduardo Barbosa"]
[Black "Verbin, Valentina"]
[Result "0-1"]
[Board "171"]
[TimeControl "180+1"]
[WhiteFideId "22757163"]
[BlackFideId "13905910"]
[WhiteElo "2387"]
[BlackElo "2152"]
[WhiteTeam "BRA"]
[BlackTeam "MDA"]
[WhiteClock "0:02:11"]
[BlackClock "0:00:19"]

1. e4 {[%clk 0:03:00]}  e6 {[%clk 0:03:00]} 2. d4 {[%clk 0:02:58]}  d5 {[%clk 0:03:00]} 3. e5 {[%clk 0:02:59]}  c5 {[%clk 0:03:00]} 4. c3 {[%clk 0:02:59]}  Nc6 {[%clk 0:03:00]} 5. Nf3 {[%clk 0:02:59]}  Qb6 {[%clk 0:02:58]} 6. Be2 {[%clk 0:02:58]}  cxd4 {[%clk 0:02:52]} 7. cxd4 {[%clk 0:02:59]}  Nge7 {[%clk 0:02:53]} 8. O-O {[%clk 0:02:59]}  Nf5 {[%clk 0:02:53]} 9. Be3 {[%clk 0:03:00]}  Be7 {[%clk 0:02:49]} 10. Nc3 {[%clk 0:02:58]}  O-O {[%clk 0:02:48]} 11. a3 {[%clk 0:02:58]}  f6 {[%clk 0:02:48]} 12. exf6 {[%clk 0:02:57]}  Bxf6 {[%clk 0:02:48]} 13. Qd2 {[%clk 0:02:56]}  Ncxd4 {[%clk 0:02:41]} 14. Nxd4 {[%clk 0:02:53]}  Bxd4 {[%clk 0:02:40]} 15. Bxd4 {[%clk 0:02:54]}  Qxd4 {[%clk 0:02:40]} 16. Qg5 {[%clk 0:02:53]}  Rf6 {[%clk 0:02:31]} 17. Rad1 {[%clk 0:02:53]}  Qe5 {[%clk 0:02:28]} 18. Rfe1 {[%clk 0:02:50]}  Bd7 {[%clk 0:01:48]} 19. Bb5 {[%clk 0:02:44]}  Qc7 {[%clk 0:01:48]} 20. Rxd5 {[%clk 0:02:41]}  Bxb5 {[%clk 0:00:46]} 21. Rxb5 {[%clk 0:02:36]}  Rg6 {[%clk 0:00:43]} 22. Qd2 {[%clk 0:02:29]}  Nh4 {[%clk 0:00:41]} 23. Kf1 {[%clk 0:02:17]}  Qxh2 {[%clk 0:00:31]} 24. Ne4 {[%clk 0:02:16]}  Qxg2+ {[%clk 0:00:19]} 25. Ke2 {[%clk 0:02:15]}  Qf3+ {[%clk 0:00:19]} 26. Kf1 {[%clk 0:02:11]}  Rg1+ {[%clk 0:00:19]} 0-1